fUSD/lending_fUSD_20260524
["ID","MTS","AMOUNT","RATE_DAILY","PERIOD"]
[422915740,1779619832000,-151.0,0.00019824,2]
[422915779,1779619833000,-260.99712079,0.00020963,2]
[422915784,1779619833000,-163.3042955,0.00020963,2]
[422915783,1779619833000,-500.0,0.00020963,2]
[422915782,1779619833000,-500.0,0.00020963,2]
[422915781,1779619833000,-500.0,0.00020963,2]
[422915780,1779619833000,-500.0,0.00020963,2]
[422915775,1779619833000,-500.0,0.00020963,2]
[422915777,1779619833000,-500.0,0.00020963,2]
[422915786,1779619833000,-165.0,0.00021,2]
[422915776,1779619833000,-500.0,0.00020963,2]
[422915773,1779619833000,-500.0,0.00020963,2]
[422915774,1779619833000,-500.0,0.00020963,2]
[422915771,1779619833000,-500.0,0.00020963,2]
[422915770,1779619833000,-500.0,0.00020963,2]
[422915769,1779619833000,-500.0,0.00020963,2]
[422915772,1779619833000,-500.0,0.00020963,2]
[422915778,1779619833000,-239.00287921,0.00020963,2]
[422915788,1779619833000,-268.0,0.00021,2]
[422915800,1779619833000,-539.46814848,0.00018873,2]
[422915787,1779619833000,-541.0,0.00021,2]
[422915789,1779619833000,-156.0,0.00021,2]
[422915803,1779619833000,-121.97942263,0.00021912,2]
[422915804,1779619833000,-136.0205774,0.00021918,2]
[422915805,1779619833000,-1058.617552,0.00021918,2]
[422915802,1779619833000,-28.02057737,0.00021912,2]
[422915801,1779619833000,-7.32211162,0.00021901,2]
[422915799,1779619833000,-147.34788838,0.00021901,2]
[422915798,1779619833000,-500.0,0.000219,2]
[422915806,1779619833000,-770.68,0.00021918,2]
[422915795,1779619833000,-166.34,0.00021632,2]
[422915796,1779619833000,-150.0,0.00021634,2]
[422915794,1779619833000,-152.0,0.00021418,7]
[422915793,1779619833000,-152.0,0.00021418,7]
[422915792,1779619833000,-154.67,0.00021237,2]
[422915785,1779619833000,-166.34,0.00020976,2]
[422915791,1779619833000,-165.0,0.00021,2]
[422915790,1779619833000,-358.0,0.00021,2]
[422915797,1779619833000,-601.3376128,0.00021792,2]
[422915825,1779619837000,-166.83,0.00022307,2]
[422915823,1779619837000,-54082.98386768,0.00022126,2]
[422915824,1779619837000,-10826.88083232,0.00022126,2]
[422915822,1779619837000,-6806.8786,0.00022126,2]
[422915819,1779619837000,-1355.0,0.00022088,2]
[422915820,1779619837000,-1224.0,0.00022088,2]
[422915830,1779619837000,-150.0,0.00022597,2]
[422915814,1779619837000,-541.0,0.00022,2]
[422915818,1779619837000,-927.0,0.00022088,2]
[422915816,1779619837000,-358.0,0.00022,2]
[422915817,1779619837000,-165.0,0.00022,2]
[422915812,1779619837000,-2146.84173089,0.00021918,2]
[422915813,1779619837000,-165.0,0.00022,2]
[422915811,1779619837000,-887.84013971,0.00021918,2]
[422915829,1779619837000,-154.67,0.00022565,2]
[422915815,1779619837000,-268.0,0.00022,2]
[422915826,1779619837000,-178.1,0.00022353,2]
[422915821,1779619837000,-3635.0,0.00022088,2]
[422915828,1779619837000,-418.86160912,0.000224,30]
[422915827,1779619837000,-504.39433436,0.000224,30]
[422915843,1779619837000,-8152.30984029,0.00024,2]
[422915845,1779619837000,-268.0,0.00024,2]
[422915844,1779619837000,-33387.22015971,0.00024,2]
[422915839,1779619837000,-154.67,0.00023892,2]
[422915840,1779619837000,-500.0,0.00023999,2]
[422915834,1779619837000,-358.0,0.00023,2]
[422915837,1779619837000,-200.0,0.00023655,2]
[422915846,1779619837000,-358.0,0.00024,2]
[422915838,1779619837000,-621.0,0.000238,2]
[422915832,1779619837000,-541.0,0.00023,2]
[422915841,1779619837000,-165.0,0.00024,2]
[422915831,1779619837000,-165.0,0.00023,2]
[422915842,1779619837000,-541.0,0.00024,2]
[422915835,1779619837000,-165.0,0.00023,2]
[422915833,1779619837000,-268.0,0.00023,2]
[422915836,1779619837000,-154.67,0.00023228,2]
[422915935,1779619838000,-543.0,0.00025,2]
[422915921,1779619838000,-623.58710447,0.00024531,2]
[422915925,1779619838000,-189.32,0.00024658,2]
[422915919,1779619838000,-178.1,0.00024324,2]
[422915934,1779619838000,-183.0,0.00025,2]
[422915923,1779619838000,-1000.0,0.00024658,2]
[422915915,1779619838000,-500.0,0.00024171,2]
[422915913,1779619838000,-500.0,0.00024171,2]
[422915931,1779619838000,-152.2,0.00024992,7]
[422915927,1779619838000,-152.2,0.00024658,2]
[422915929,1779619838000,-1006.72,0.000248,2]
[422915909,1779619838000,-500.0,0.00024171,2]
[422915946,1779619838000,-1355.0,0.00025088,2]
[422915962,1779619838000,-152.26,0.0002566,2]
[422915948,1779619838000,-1224.0,0.00025088,2]
[422915950,1779619838000,-3635.0,0.00025088,2]
[422915940,1779619838000,-366.0,0.00025,2]
[422915944,1779619838000,-927.0,0.00025088,2]
[422915942,1779619838000,-169.0,0.00025,2]
[422915952,1779619838000,-518.0,0.00025194,10]
[422915954,1779619838000,-152.2,0.00025326,30]
[422915956,1779619838000,-1000.0,0.000256,2]
[422915958,1779619838000,-2500.0,0.00025615,2]
[422915960,1779619838000,-152.2,0.0002566,2]
[422915964,1779619838000,-150.0,0.00025693,4]
[422915976,1779619838000,-487.0,0.00025718,2]
[422915911,1779619838000,-500.0,0.00024171,2]
[422915938,1779619838000,-284.0,0.00025,2]
[422915917,1779619838000,-12135.67,0.00024174,2]
[422915847,1779619838000,-165.0,0.00024,2]
[422915902,1779619838000,-500.0,0.00024171,2]
[422915855,1779619838000,-500.0,0.00024171,2]
[422915857,1779619838000,-500.0,0.00024171,2]
[422915848,1779619838000,-1435.84,0.00024098,6]
[422915849,1779619838000,-169.84684058,0.00024098,6]
[422915851,1779619838000,-503.63901513,0.00024171,2]
[422915853,1779619838000,-500.0,0.00024171,2]
[422915860,1779619838000,-500.0,0.00024171,2]
[422915862,1779619838000,-599.81522342,0.00024171,2]
[422915864,1779619838000,-500.0,0.00024171,2]
[422915868,1779619838000,-500.0,0.00024171,2]
[422915866,1779619838000,-500.0,0.00024171,2]
[422915974,1779619838000,-18061.26623429,0.00025715,7]
[422915870,1779619838000,-500.0,0.00024171,2]
[422915906,1779619838000,-500.0,0.00024171,2]
[422915872,1779619838000,-500.0,0.00024171,2]
[422915877,1779619838000,-172.89184856,0.00024171,2]
[422915879,1779619838000,-500.0,0.00024171,2]
[422915881,1779619838000,-500.0,0.00024171,2]
[422915887,1779619838000,-500.0,0.00024171,2]
[422915885,1779619838000,-500.0,0.00024171,2]
[422915889,1779619838000,-500.0,0.00024171,2]
[422915891,1779619838000,-500.0,0.00024171,2]
[422915893,1779619838000,-500.0,0.00024171,2]
[422915883,1779619838000,-500.0,0.00024171,2]
[422915895,1779619838000,-500.0,0.00024171,2]
[422915898,1779619838000,-500.0,0.00024171,2]
[422915900,1779619838000,-500.0,0.00024171,2]
[422915904,1779619838000,-500.0,0.00024171,2]
[422915874,1779619838000,-500.0,0.00024171,2]
[422915967,1779619838000,-150.0,0.00025693,4]
[422915859,1779619838000,-500.0,0.00024171,2]
[422915978,1779619838000,-691.15,0.00025718,2]
[422916035,1779619838000,-537.16,0.0002755,30]
[422916038,1779619838000,-500.0,0.00027561,30]
[422916036,1779619838000,-654.3,0.0002755,30]
[422916046,1779619838000,-533.61,0.00027711,7]
[422916041,1779619838000,-53602.2721473,0.00027562,2]
[422916042,1779619838000,-10108.4649656,0.0002758,2]
[422916047,1779619838000,-651.1,0.00027711,7]
[422916048,1779619838000,-2131.22,0.00027711,7]
[422916043,1779619838000,-157.84,0.00027622,7]
[422916045,1779619838000,-157.84,0.00027695,30]
[422916039,1779619838000,-233392.6620289,0.00027562,2]
[422916044,1779619838000,-152.2,0.00027664,2]
[422916060,1779619838000,-654.3,0.00027872,2]
[422916037,1779619838000,-2139.89,0.0002755,30]
[422916049,1779619838000,-537.16,0.00027711,7]
[422916052,1779619838000,-157.84,0.00027767,2]
[422916051,1779619838000,-2139.89,0.00027711,7]
[422916053,1779619838000,-150.0,0.00027834,7]
[422916058,1779619838000,-2131.22,0.00027872,2]
[422916055,1779619838000,-1000.0,0.00027855,4]
[422916054,1779619838000,-157.84,0.0002784,7]
[422916057,1779619838000,-651.1,0.00027872,2]
[422916059,1779619838000,-537.16,0.00027872,2]
[422916056,1779619838000,-533.61,0.00027872,2]
[422916061,1779619838000,-2139.89,0.00027872,2]
[422916062,1779619838000,-157.84,0.00027912,30]
[422916063,1779619838000,-1000.0,0.00027931,14]
[422915977,1779619838000,-487.0,0.00025718,2]
[422916050,1779619838000,-654.3,0.00027711,7]
[422916023,1779619838000,-6973.8,0.00027397,10]
[422916040,1779619838000,-12688.4122385,0.00027562,2]
[422916021,1779619838000,-1500.0,0.00027397,2]
[422915979,1779619838000,-12135.67,0.00025786,2]
[422915982,1779619838000,-1020.0,0.000258,7]
[422916017,1779619838000,-500.0,0.00027356,7]
[422915971,1779619838000,-454.7007754,0.00025715,7]
[422915985,1779619838000,-1091.0,0.00026191,5]
[422915983,1779619838000,-152.2,0.00025994,7]
[422915987,1779619838000,-1020.0,0.000262,10]
[422915989,1779619838000,-178.1,0.00026296,2]
[422916005,1779619838000,-8379.06,0.00026995,7]
[422916001,1779619838000,-152.2,0.00026662,2]
[422915999,1779619838000,-150.0,0.00026407,4]
[422916003,1779619838000,-2669.0,0.000267,7]
[422915991,1779619838000,-2000.0,0.000263,2]
[422916009,1779619838000,-150.0,0.00027121,4]
[422915997,1779619838000,-41539.53,0.000264,2]
[422915969,1779619838000,-489.87299031,0.00025715,7]
[422915995,1779619838000,-500.0,0.00026398,2]
[422915993,1779619838000,-152.2,0.00026328,30]
[422916019,1779619838000,-500.0,0.00027356,7]
[422916034,1779619838000,-2131.22,0.0002755,30]
[422916032,1779619838000,-533.61,0.0002755,30]
[422916013,1779619838000,-560.38385809,0.0002727,2]
[422916031,1779619838000,-157.84,0.0002755,2]
[422916015,1779619838000,-152.2,0.0002733,30]
[422916025,1779619838000,-5811.5,0.00027397,10]
[422916029,1779619838000,-150.0,0.00027521,2]
[422916027,1779619838000,-2669.0,0.000275,7]
[422916007,1779619838000,-152.2,0.00026996,7]
[422916033,1779619838000,-651.1,0.0002755,30]
[422916012,1779619838000,-1000.0,0.000272,20]
[422916078,1779619839000,-1224.0,0.00028088,2]
[422916081,1779619839000,-157.86,0.0002813,30]
[422916076,1779619839000,-927.0,0.00028088,2]
[422916083,1779619839000,-651.1,0.00028194,7]
[422916080,1779619839000,-2274.60282018,0.0002813,2]
[422916082,1779619839000,-533.61,0.00028194,7]
[422916085,1779619839000,-537.16,0.00028194,7]
[422916087,1779619839000,-2139.89,0.00028194,7]
[422916088,1779619839000,-1000.0,0.000282,30]
[422916077,1779619839000,-1355.0,0.00028088,2]
[422916079,1779619839000,-3635.0,0.00028088,2]
[422916073,1779619839000,-654.3,0.00028033,30]
[422916069,1779619839000,-533.61,0.00028033,30]
[422916084,1779619839000,-2131.22,0.00028194,7]
[422916074,1779619839000,-2139.89,0.00028033,30]
[422916068,1779619839000,-1361.0,0.00028033,5]
[422916072,1779619839000,-537.16,0.00028033,30]
[422916071,1779619839000,-2131.22,0.00028033,30]
[422916065,1779619839000,-152.2,0.00027998,7]
[422916067,1779619839000,-18059.22186175,0.00028,2]
[422916066,1779619839000,-41539.53,0.00028,2]
[422916070,1779619839000,-651.1,0.00028033,30]
[422916064,1779619839000,-157.84,0.00027985,2]
[422916090,1779619839000,-152.2,0.00028332,30]
[422916075,1779619839000,-157.84,0.00028057,7]
[422916086,1779619839000,-654.3,0.00028194,7]
[422916108,1779619839000,-500.0,0.00028556,120]
[422916094,1779619839000,-5000.0,0.00028457,2]
[422916117,1779619839000,-509.65562623,0.00028557,2]
[422916114,1779619839000,-303.75612848,0.0002755,10]
[422916115,1779619839000,-171.24387152,0.0002755,10]
[422916112,1779619839000,-1580198.70194305,0.00028557,2]
[422916110,1779619839000,-200.0,0.00028557,2]
[422916111,1779619839000,-150.0,0.00028557,2]
[422916109,1779619839000,-500.5,0.00028556,120]
[422916098,1779619839000,-1901.77748506,0.0002851,2]
[422916091,1779619839000,-1901.77748506,0.00028385,2]
[422916102,1779619839000,-152.0,0.00028546,7]
[422916097,1779619839000,-281.37065535,0.0002851,2]
[422916104,1779619839000,-500.0,0.00028556,30]
[422916099,1779619839000,-159.06154663,0.0002851,2]
[422916096,1779619839000,-1018.27102261,0.0002851,2]
[422916089,1779619839000,-178.1,0.00028267,2]
[422916100,1779619839000,-1000.0,0.00028529,3]
[422916095,1779619839000,-478.6088,0.00028485,2]
[422916092,1779619839000,-1000.0,0.0002841,5]
[422916103,1779619839000,-150.0,0.00028548,7]
[422916093,1779619839000,-1901.77748506,0.00028448,2]
[422916107,1779619839000,-571.26139988,0.00028556,30]
[422916101,1779619839000,-2331.0,0.0002853,3]
[422916106,1779619839000,-500.0,0.00028556,30]
[422916116,1779619839000,-2783.66638235,0.00028557,2]
[422916105,1779619839000,-500.0,0.00028556,30]
[422916129,1779619842000,-1141.32448889,0.0002755,30]
[422916128,1779619842000,-291.53411516,0.0002755,30]
[422916126,1779619842000,-162.37,0.0002755,2]
[422916127,1779619842000,-360.34588484,0.0002755,30]
[422916125,1779619842000,-536.6,0.0002755,30]
[422916130,1779619843000,-152.23,0.00024658,2]
[422916131,1779619843000,-1144.316888,0.00027412,2]
[422916132,1779619843000,-987.76551111,0.0002755,30]
[422916135,1779619843000,-536.6,0.00027711,7]
[422916133,1779619843000,-162.37,0.00027614,7]
[422916136,1779619843000,-1300.34760089,0.00027711,7]
[422916134,1779619843000,-162.37,0.00027678,30]
[422916138,1779619845000,-515.203,0.00022088,2]
[422916139,1779619845000,-152.23,0.00024947,7]
[422916141,1779619845000,-152.23,0.00025236,30]
[422916144,1779619845000,-152.23,0.00025815,7]
[422916147,1779619845000,-152.23,0.00026394,2]
[422916140,1779619845000,-556.0,0.00025082,2]
[422916148,1779619845000,-152.23,0.00026684,7]
[422916142,1779619845000,-152.23,0.00025526,2]
[422916146,1779619845000,-556.0,0.00026192,3]
[422916145,1779619845000,-152.23,0.00026105,30]
[422916149,1779619845000,-556.0,0.00026746,3]
[422916143,1779619845000,-556.0,0.00025637,2]
[422916161,1779619846000,-651.88,0.00027872,2]
[422916163,1779619846000,-162.37,0.00027936,2]
[422916160,1779619846000,-2129.09,0.00027872,2]
[422916159,1779619846000,-536.6,0.00027872,2]
[422916158,1779619846000,-556.0,0.00027856,4]
[422916155,1779619846000,-651.88,0.00027711,7]
[422916153,1779619846000,-1500.0,0.00027397,2]
[422916150,1779619846000,-152.23,0.00026973,30]
[422916157,1779619846000,-162.37,0.00027807,7]
[422916162,1779619846000,-162.37,0.00027872,30]
[422916154,1779619846000,-828.74239911,0.00027711,7]
[422916152,1779619846000,-556.0,0.00027301,4]
[422916151,1779619846000,-152.23,0.00027263,2]
[422916164,1779619846000,-162.37,0.00028001,7]
[422916156,1779619846000,-162.37,0.00027743,2]
[422916165,1779619846000,-536.6,0.00028033,30]
[422916167,1779619846000,-651.88,0.00028033,30]
[422916179,1779619846000,-651.88,0.00028516,30]
[422916182,1779619846000,-152.23,0.00027552,7]
[422916180,1779619846000,-1009.0,0.00028557,10]
[422916177,1779619846000,-536.6,0.00028516,30]
[422916184,1779619846000,-1241.77,0.00028557,2]
[422916181,1779619846000,-21652.75135633,0.00028557,2]
[422916168,1779619846000,-162.37,0.00028065,30]
[422916178,1779619846000,-2129.09,0.00028516,30]
[422916174,1779619846000,-536.6,0.00028355,2]
[422916183,1779619846000,-556.0,0.00028411,5]
[422916175,1779619846000,-2129.09,0.00028355,2]
[422916170,1779619846000,-162.46,0.0002813,2]
[422916171,1779619846000,-536.6,0.00028194,7]
[422916176,1779619846000,-651.88,0.00028355,2]
[422916173,1779619846000,-651.88,0.00028194,7]
[422916166,1779619846000,-2129.09,0.00028033,30]
[422916169,1779619846000,-1516.40188012,0.0002813,2]
[422916172,1779619846000,-2129.09,0.00028194,7]
[422916191,1779620365000,500.5,0.00027999,120]
[422916190,1779620365000,500.0,0.00027999,120]
[422916198,1779620765000,-150.0,9.829e-05,2]
[422916199,1779620771000,-19.63,9.829e-05,2]
[422916207,1779621031000,-250.0,0.00014287,2]
[422916209,1779621031000,-150.0,0.00017877,2]
[422916210,1779621031000,-143.04329282,0.00017877,2]
[422916208,1779621031000,-150.0,0.00017877,4]
[422916235,1779621032000,-150.0,0.0001887,2]
[422916231,1779621032000,-8460.10954636,0.00018534,2]
[422916237,1779621032000,-2251.04,0.00018893,2]
[422916242,1779621032000,-150.0,0.00019366,4]
[422916245,1779621032000,-500.0,0.00019663,2]
[422916234,1779621032000,-400.0,0.00018787,2]
[422916232,1779621032000,-1650.0,0.00018571,2]
[422916227,1779621032000,-150.0,0.00018373,2]
[422916241,1779621032000,-4999.99,0.00019339,2]
[422916229,1779621032000,-1337.22871879,0.00018534,2]
[422916225,1779621032000,-0.95038731,0.00017877,2]
[422916228,1779621032000,-234.61116543,0.00018493,21]
[422916222,1779621032000,-42.34253783,0.00017877,2]
[422916230,1779621032000,-1243.66173485,0.00018534,2]
[422916224,1779621032000,-150.0,0.00017877,2]
[422916223,1779621032000,-150.0,0.00017877,2]
[422916233,1779621032000,-257.47106309,0.00018604,2]
[422916226,1779621032000,-149.04961269,0.00017877,2]
[422916236,1779621032000,-1200.0,0.00018892,2]
[422916239,1779621032000,-300.0,0.00019338,2]
[422916257,1779621032000,-385.8722162,0.00019664,2]
[422916260,1779621032000,-368.52832,0.00019664,2]
[422916238,1779621032000,-420.0,0.000193,3]
[422916258,1779621032000,-927.55529614,0.00019664,2]
[422916256,1779621032000,-2866.73601876,0.00019664,2]
[422916248,1779621032000,-486.558898,0.00019663,2]
[422916251,1779621032000,-13811.98541438,0.00019664,2]
[422916254,1779621032000,-13978.86332071,0.00019664,2]
[422916255,1779621032000,-500.0,0.00019663,2]
[422916249,1779621032000,-150.64687652,0.00019663,2]
[422916253,1779621032000,-53198.16130352,0.00019664,2]
[422916252,1779621032000,-18615.72628947,0.00019664,2]
[422916247,1779621032000,-500.0,0.00019663,2]
[422916244,1779621032000,-162.64694406,0.00019654,2]
[422916246,1779621032000,-500.0,0.00019663,2]
[422916259,1779621032000,-500.0,0.00019663,2]
[422916243,1779621032000,-4559.05290192,0.00019564,2]
[422916240,1779621032000,-9999.99,0.00019339,2]
[422916250,1779621032000,-500.0,0.00019663,2]
[422916265,1779621037000,-167.97317927,0.00019663,2]
[422916264,1779621037000,-500.0,0.00019663,2]
[422916269,1779621037000,-177.75724705,0.00019663,2]
[422916267,1779621037000,-500.0,0.00019663,2]
[422916268,1779621037000,-418.17748706,0.00019663,2]
[422916266,1779621037000,-500.0,0.00019663,2]
[422916279,1779621038000,-500.0,0.00019663,2]
[422916286,1779621038000,-213.25465158,0.00019665,2]
[422916277,1779621038000,-500.0,0.00019663,2]
[422916289,1779621038000,-281.37065535,0.00019665,2]
[422916284,1779621038000,-2500.0,0.00019665,2]
[422916285,1779621038000,-154.33749078,0.00019665,2]
[422916283,1779621038000,-5000.0,0.00019665,2]
[422916287,1779621038000,-5705.33245518,0.00019665,2]
[422916281,1779621038000,-500.0,0.00019663,2]
[422916280,1779621038000,-500.0,0.00019663,2]
[422916307,1779621038000,-370.62,0.00019764,2]
[422916278,1779621038000,-500.0,0.00019663,2]
[422916282,1779621038000,-1395846.57182082,0.00019664,2]
[422916275,1779621038000,-500.0,0.00019663,2]
[422916272,1779621038000,-500.0,0.00019663,2]
[422916274,1779621038000,-500.0,0.00019663,2]
[422916273,1779621038000,-500.0,0.00019663,2]
[422916271,1779621038000,-500.0,0.00019663,2]
[422916270,1779621038000,-500.0,0.00019663,2]
[422916292,1779621038000,-850.0,0.00019763,2]
[422916276,1779621038000,-500.0,0.00019663,2]
[422916298,1779621038000,-571.26139988,0.00019764,2]
[422916306,1779621038000,-500.0,0.00019764,2]
[422916290,1779621038000,-1262.8,0.00019726,2]
[422916296,1779621038000,-500.0,0.00019764,2]
[422916311,1779621038000,-500.0,0.00019663,2]
[422916312,1779621038000,-500.0,0.00019663,2]
[422916313,1779621038000,-500.0,0.00019663,2]
[422916308,1779621038000,-1087.0,0.00019765,5]
[422916310,1779621038000,-699643.91456773,0.00019765,2]
[422916309,1779621038000,-500.0,0.00019765,2]
[422916305,1779621038000,-500.0,0.00019764,2]
[422916304,1779621038000,-500.0,0.00019764,2]
[422916302,1779621038000,-500.0,0.00019764,2]
[422916315,1779621038000,-14968.34138431,0.00019765,2]
[422916303,1779621038000,-500.0,0.00019764,2]
[422916297,1779621038000,-500.0,0.00019764,2]
[422916294,1779621038000,-500.0,0.00019764,2]
[422916291,1779621038000,-1148.672,0.00019763,2]
[422916300,1779621038000,-572.1,0.00019764,2]
[422916293,1779621038000,-500.0,0.00019764,2]
[422916295,1779621038000,-500.0,0.00019764,2]
[422916288,1779621038000,-1018.27102261,0.00019665,2]
[422916299,1779621038000,-500.0,0.00019764,2]
[422916301,1779621038000,-500.0,0.00019764,2]
[422916343,1779621040000,-500.0,0.00019663,2]
[422916342,1779621040000,-500.0,0.00019663,2]
[422916340,1779621040000,-500.0,0.00019663,2]
[422916336,1779621040000,-134.12677133,0.00019663,2]
[422916341,1779621040000,-500.0,0.00019663,2]
[422916339,1779621040000,-500.0,0.00019663,2]
[422916338,1779621040000,-500.0,0.00019663,2]
[422916344,1779621040000,-500.0,0.00019663,2]
[422916337,1779621040000,-365.87322867,0.00019663,2]
[422916346,1779621040000,-500.0,0.00019663,2]
[422916354,1779621040000,-67213.10425603,0.00019765,2]
[422916347,1779621040000,-416.67766489,0.00019663,2]
[422916355,1779621040000,-847.33266475,0.00019765,2]
[422916351,1779621040000,-335.38,0.00019765,2]
[422916349,1779621040000,-103528.06926626,0.00019765,2]
[422916348,1779621040000,-500.0,0.00019663,2]
[422916350,1779621040000,-6410.09324054,0.00019765,2]
[422916352,1779621040000,-764100.50008922,0.00019765,2]
[422916353,1779621040000,-2075.70576896,0.00019765,2]
[422916356,1779621040000,-4030.55,0.00019765,2]
[422916345,1779621040000,-500.0,0.00019663,2]
[422916379,1779621045000,-581.0,0.00019765,2]
[422916378,1779621045000,-518.33763266,0.00019765,2]
[422916377,1779621045000,-159.06154663,0.00019665,2]
[422916380,1779621046000,-5334.68776504,0.00019765,2]
[422916383,1779621046000,-2786.293386,0.00019765,2]
[422916381,1779621046000,-384.25,0.00019765,2]
[422916382,1779621046000,-27387.34485601,0.00019765,2]
[422916404,1779621359000,150.0,9.523e-05,2]
[422916405,1779621359000,7.95,9.523e-05,2]
[422916407,1779621424000,249.97,0.00027935,120]
[422916406,1779621424000,249.97,0.00025607,120]
[422916517,1779622121000,122.42,7.47e-05,2]
[422916519,1779622142000,1000.0,0.00027934,120]
[422916537,1779622231000,-163.5,8.3e-05,2]
[422916539,1779622231000,-40.58398019,9.961e-05,2]
[422916536,1779622231000,-250.0,8.217e-05,2]
[422916538,1779622231000,-163.5,9.13e-05,2]
[422916534,1779622231000,-211.72804943,8.217e-05,2]
[422916533,1779622231000,-41.08,7.47e-05,2]
[422916535,1779622231000,-38.27195057,8.217e-05,2]
[422916540,1779622231000,-122.91601981,9.961e-05,2]
[422916547,1779622231000,-163.5,0.00012451,2]
[422916542,1779622231000,-163.5,0.00010791,2]
[422916543,1779622231000,-157.95,0.00011428,2]
[422916545,1779622231000,-163.5,0.00011621,2]
[422916544,1779622231000,-164.56790507,0.00011523,2]
[422916546,1779622231000,-157.95,0.0001238,2]
[422916549,1779622231000,-165.38,0.00013291,2]
[422916548,1779622231000,-163.5,0.00013281,2]
[422916541,1779622231000,-157.95,0.00010475,2]
[422916553,1779622232000,-150.0,0.00013488,2]
[422916550,1779622232000,-157.95,0.00013332,2]
[422916552,1779622232000,-150.0,0.00013488,2]
[422916555,1779622232000,-85.41502863,0.00013488,2]
[422916554,1779622232000,-150.0,0.00013488,2]
[422916557,1779622232000,-193.29022863,0.0001365,2]
[422916556,1779622232000,-64.58497137,0.00013488,2]
[422916559,1779622232000,-163.5,0.00014111,2]
[422916551,1779622232000,-150.0,0.00013488,2]
[422916560,1779622232000,-157.95,0.00014284,2]
[422916558,1779622232000,-1437.42977137,0.0001365,2]
[422916567,1779622232000,-2841.88054873,0.000149,2]
[422916565,1779622232000,-213.25465158,0.000149,2]
[422916566,1779622232000,-31616.56676941,0.000149,2]
[422916562,1779622232000,-300.0,0.00014898,2]
[422916564,1779622232000,-150.0,0.00014899,2]
[422916561,1779622232000,-1200.0,0.00014787,2]
[422916563,1779622232000,-1128.0,0.00014899,2]
[422916616,1779622238000,-500.0,0.00014999,2]
[422916622,1779622238000,-500.0,0.00014999,2]
[422916606,1779622238000,-500.0,0.00014999,2]
[422916624,1779622238000,-567.0905868,0.00014999,2]
[422916614,1779622238000,-308.98829116,0.00014999,2]
[422916618,1779622238000,-500.0,0.00014999,2]
[422916620,1779622238000,-500.0,0.00014999,2]
[422916608,1779622238000,-500.0,0.00014999,2]
[422916626,1779622238000,-500.0,0.00014999,2]
[422916632,1779622238000,-500.0,0.00014999,2]
[422916628,1779622238000,-500.0,0.00014999,2]
[422916640,1779622238000,-159.20790693,0.00014999,2]
[422916642,1779622238000,-557.9679756,0.00014999,2]
[422916634,1779622238000,-500.0,0.00014999,2]
[422916644,1779622238000,-500.0,0.00014999,2]
[422916646,1779622238000,-500.0,0.00014999,2]
[422916636,1779622238000,-500.0,0.00014999,2]
[422916612,1779622238000,-152.14144247,0.00014999,2]
[422916630,1779622238000,-500.0,0.00014999,2]
[422916603,1779622238000,-500.0,0.00014999,2]
[422916581,1779622238000,-150.0,0.00014986,2]